{"text_format":"1","workbook":"xlsx","n_sheets":3,"sheets":["Key","Notes","NCNF"],"not_rendered":{"charts":0,"images":7,"macros":1,"external_links":0,"defined_names":1,"comments":0,"pivot_tables":0},"unopened":[],"bounds":{"document_bytes":16777216,"sheet_cells":100000,"rows_first":2000,"rows_last":500,"rows_between":2000,"halvings":0,"cell_chars":16384,"cell_head_chars":4096},"cells_cut":0,"cells_raw":0,"read":"whole","date_system":"1900"}

{"sheet":"Key","index":0,"n_rows":445,"n_cols":53,"rows_kept":445,"cut":false,"hidden":true,"merged":[]}
["State","Abbreviation",null,"SIC Code","Industry Title",null,"Current Funding",null,"Sales Executives",null,"Underwriters",null,"Senior Consultants",null,"Account Managers",null,"Account Coordinator",null,"Pharmacy Liason",null,"LH Client Manager",null,"LH Client Coordinator",null,"Networks",null,"Out of Network Vendors",null,"Aetna - Network Platform",null,"Anthem Models",null,"RBP Network",null,"PBMs",null,"Rebate Retention",null,"Dental",null,"Vision",null,"HSA",null,"Flex Admin - Health",null,"Wellness",null,"Teladoc",null,"Teladoc - Billing Arrangement",null,"Healthcare Bluebook"]
["Alabama","AL",null,100,"AGRICULTURAL PRODUCTION-CROPS",null,"Fully Insured",null,"Andrea Dennis","adennis@evhc.com","Beth Rangel","brangel@evhc.com","Bob Watt","rwatt@evhc.com","Athena Smith","asmith@evhc.com","Meredith Osborne","mosborne@evhc.com","Cassy Wheeler","cwheeler@evhc.com",null,null,null,null,"Aetna",null,"Edge (std)",null,"1.0",null,"Aggregator",null,"Full",null,"MedImpact (std)",null,"EVHC (std)",null,"Cigna Dental SA",null,"Avesis",null,"HSA Bank",null,"Full",null,"Vigoroom",null,"Medical & Behavioral Health (std)",null,"With Consult",null,"EE 1099'd"]
["Alaska","AK",null,200,"AGRICULTURAL PROD-LIVESTOCK & ANIMAL SPECIALTIES",null,"Self Insured",null,"Anthony Robinson","arobinsonjr@evhc.com","Chris Baker","cbaker@evhc.com","Chris Stolze","cstolze@evhc.com","Danna Stephens","dstephens@evhc.com","Shayleen Thomas","sthomas@evhc.com","Catherine Hibbert","chibbert@evhc.com",null,null,null,null,"Anthem",null,"Multiplan",null,"2.0",null,"Traditional (CA Only)",null,"Dual",null,"Carelon (only available with Anthem)",null,"Client",null,"Guardian (Dental Guard Preferred Select Network)",null,"VSP",null,null,null,"Limited",null,"Population Health",null,"Medical Only",null,"Without Consult",null,"ER Invoiced"]
["Arizona","AZ",null,700,"AGRICULTURAL SERVICES",null,"Level Funded",null,"Brent Starling","bstarling@evhc.com","Dylan Shackelford","dshackelford@evhc.com","Dan Breedlove","dbreedlove@evhc.com","Erica Guzman","eguzman@evhc.com",null,null,"Katie Sells","ksells@evhc.com",null,null,null,null,"Cigna",null,"% of Medicare",null,"2.5",null,null,null,null,null,null,null,"Other",null,"Anthem",null,"EyeMed",null,null,null,"Full & Limited"]
["Arkansas","AR",null,800,"FORESTRY",null,null,null,"Chandler Kaltenbach","ckaltenbach@evhc.com","Jon Miller","jmiller@evhc.com","Hope Crawford","hcrawford@evhc.com","Jay Fahrer","jfahrer@evhc.com",null,null,"Katie Smith","ksmith@evhc.com",null,null,null,null,"Highmark",null,"% of HIAA",null,"3.0",null,null,null,null,null,null,null,null,null,"Aetna ADA",null,"Guardian"]
["California","CA",null,900,"FISHING, HUNTING AND TRAPPING",null,null,null,"Darick Bradford","dbradford@evhc.com","Justin DaCosta","jdacosta@evhc.com","James Huynh","jhuynh@evhc.com","Karen Ellis","kellis@evhc.com",null,null,"Mckayla Hadean","mhadean@evhc.com",null,null,null,null,"UHC",null,"RBP - ELAP"]
["Colorado","CO",null,1000,"METAL MINING",null,null,null,"Erin Frink","efrink@evhc.com","Larry Folz","lfolz@evhc.com","Lynn Zeiner","lzeiner@evhc.com","Mark Tramontana","mtramontana@evhc.com",null,null,null,null,null,null,null,null,"RBP - AMPS",null,"RBP - AMPS"]
["Connecticut","CT",null,1040,"GOLD AND SILVER ORES",null,null,null,"Evan Taub","etaub@evhc.com","Lisa Truskowski","ltruskowski@evhc.com","Pam Saunders","psaunders@evhc.com","Megan Grafton","mgrafton@evhc.com",null,null,null,null,null,null,null,null,"RBP - ELAP",null,"Anthem"]
["Delaware","DE",null,1090,"MISCELLANEOUS METAL ORES",null,null,null,"James Corrales","jcorrales@evhc.com","Melissa Rangel","mrangel@evhc.com","Sean Leonard","sleonard@evhc.com","Rachael Marks","rmarks@evhc.com"]
["District of Columbia","DC",null,1220,"BITUMINOUS COAL & LIGNITE MINING",null,null,null,"John Dallo","jdallo@evhc.com","Tucker Sullivan","jsullivan@evhc.com","Shaniqua Lawrence","slawrence@evhc.com","Tiffany Manik","tmanik@evhc.com"]
["Florida","FL",null,1221,"BITUMINOUS COAL & LIGNITE SURFACE MINING",null,null,null,"Josh Haskett","jhaskett@evhc.com","Will Wilson","wwilson@evhc.com",null,null,"Tyler Stephens","tstephens@evhc.com"]
["Georgia","GA",null,1311,"CRUDE PETROLEUM & NATURAL GAS",null,null,null,"Robert Painter","rpainter@evhc.com"]
["Hawaii","HI",null,1381,"DRILLING OIL & GAS WELLS",null,null,null,"Ryan French","rfrench@evhc.com"]
["Idaho","ID",null,1382,"OIL & GAS FIELD EXPLORATION SERVICES"]
["Illinois","IL",null,1389,"OIL & GAS FIELD SERVICES, NEC"]
["Indiana","IN",null,1400,"MINING & QUARRYING OF NONMETALLIC MINERALS (NO FUELS)"]
["Iowa","IA",null,1520,"GENERAL BLDG CONTRACTORS - RESIDENTIAL BLDGS"]
["Kansas","KS",null,1531,"OPERATIVE BUILDERS"]
["Kentucky","KY",null,1540,"GENERAL BLDG CONTRACTORS - NONRESIDENTIAL BLDGS"]
["Louisiana","LA",null,1600,"HEAVY CONSTRUCTION OTHER THAN BLDG CONST - CONTRACTORS"]
["Maine","ME",null,1623,"WATER, SEWER, PIPELINE, COMM & POWER LINE CONSTRUCTION"]
["Maryland","MD",null,1700,"CONSTRUCTION - SPECIAL TRADE CONTRACTORS"]
["Massachusetts","MA",null,1731,"ELECTRICAL WORK"]
["Michigan","MI",null,2000,"FOOD AND KINDRED PRODUCTS"]
["Minnesota","MN",null,2011,"MEAT PACKING PLANTS"]
["Mississippi","MS",null,2013,"SAUSAGES & OTHER PREPARED MEAT PRODUCTS"]
["Missouri","MO",null,2015,"POULTRY SLAUGHTERING AND PROCESSING"]
["Montana","MT",null,2020,"DAIRY PRODUCTS"]
["Nebraska","NE",null,2024,"ICE CREAM & FROZEN DESSERTS"]
["Nevada","NV",null,2030,"CANNED, FROZEN & PRESERVD FRUIT, VEG & FOOD SPECIALTIES"]
["New Hampshire","NH",null,2033,"CANNED, FRUITS, VEG, PRESERVES, JAMS & JELLIES"]
["New Jersey","NJ",null,2040,"GRAIN MILL PRODUCTS"]
["New Mexico","NM",null,2050,"BAKERY PRODUCTS"]
["New York","NY",null,2052,"COOKIES & CRACKERS"]
["North Carolina","NC",null,2060,"SUGAR & CONFECTIONERY PRODUCTS"]
["North Dakota","ND",null,2070,"FATS & OILS"]
["Ohio","OH",null,2080,"BEVERAGES"]
["Oklahoma","OK",null,2082,"MALT BEVERAGES"]
["Oregon","OR",null,2086,"BOTTLED & CANNED SOFT DRINKS & CARBONATED WATERS"]
["Pennsylvania","PA",null,2090,"MISCELLANEOUS FOOD PREPARATIONS & KINDRED PRODUCTS"]
["Rhode Island","RI",null,2092,"PREPARED FRESH OR FROZEN FISH & SEAFOODS"]
["South Carolina","SC",null,2100,"TOBACCO PRODUCTS"]
["South Dakota","SD",null,2111,"CIGARETTES"]
["Tennessee","TN",null,2200,"TEXTILE MILL PRODUCTS"]
["Texas","TX",null,2211,"BROADWOVEN FABRIC MILLS, COTTON"]
["Utah","UT",null,2221,"BROADWOVEN FABRIC MILLS, MAN MADE FIBER & SILK"]
["Vermont","VT",null,2250,"KNITTING MILLS"]
["Virginia","VA",null,2253,"KNIT OUTERWEAR MILLS"]
["Washington","WA",null,2273,"CARPETS & RUGS"]
["West Virginia","WV",null,2300,"APPAREL & OTHER FINISHD PRODS OF FABRICS & SIMILAR MATL"]
["Wisconsin","WI",null,2320,"MEN'S & BOYS' FURNISHGS, WORK CLOTHG, & ALLIED GARMENTS"]
["Wyoming","WY",null,2330,"WOMEN'S, MISSES', AND JUNIORS OUTERWEAR"]
[null,null,null,2340,"WOMEN'S, MISSES', CHILDREN'S & INFANTS' UNDERGARMENTS"]
[null,null,null,2390,"MISCELLANEOUS FABRICATED TEXTILE PRODUCTS"]
[null,null,null,2400,"LUMBER & WOOD PRODUCTS (NO FURNITURE)"]
[null,null,null,2421,"SAWMILLS & PLANTING MILLS, GENERAL"]
[null,null,null,2430,"MILLWOOD, VENEER, PLYWOOD, & STRUCTURAL WOOD MEMBERS"]
[null,null,null,2451,"MOBILE HOMES"]
[null,null,null,2452,"PREFABRICATED WOOD BLDGS & COMPONENTS"]
[null,null,null,2510,"HOUSEHOLD FURNITURE"]
[null,null,null,2511,"WOOD HOUSEHOLD FURNITURE, (NO UPHOLSTERED)"]
[null,null,null,2520,"OFFICE FURNITURE"]
[null,null,null,2522,"OFFICE FURNITURE (NO WOOD)"]
[null,null,null,2531,"PUBLIC BLDG & RELATED FURNITURE"]
[null,null,null,2540,"PARTITIONS, SHELVG, LOCKERS, & OFFICE & STORE FIXTURES"]
[null,null,null,2590,"MISCELLANEOUS FURNITURE & FIXTURES"]
[null,null,null,2600,"PAPERS & ALLIED PRODUCTS"]
[null,null,null,2611,"PULP MILLS"]
[null,null,null,2621,"PAPER MILLS"]
[null,null,null,2631,"PAPERBOARD MILLS"]
[null,null,null,2650,"PAPERBOARD CONTAINERS & BOXES"]
[null,null,null,2670,"CONVERTED PAPER & PAPERBOARD PRODS (NO CONTANERS/BOXES)"]
[null,null,null,2673,"PLASTICS, FOIL & COATED PAPER BAGS"]
[null,null,null,2711,"NEWSPAPERS: PUBLISHING OR PUBLISHING & PRINTING"]
[null,null,null,2721,"PERIODICALS: PUBLISHING OR PUBLISHING & PRINTING"]
[null,null,null,2731,"BOOKS: PUBLISHING OR PUBLISHING & PRINTING"]
[null,null,null,2732,"BOOK PRINTING"]
[null,null,null,2741,"MISCELLANEOUS PUBLISHING"]
[null,null,null,2750,"COMMERCIAL PRINTING"]
[null,null,null,2761,"MANIFOLD BUSINESS FORMS"]
[null,null,null,2771,"GREETING CARDS"]
[null,null,null,2780,"BLANKBOOKS, LOOSELEAF BINDERS & BOOKBINDG & RELATD WORK"]
[null,null,null,2790,"SERVICE INDUSTRIES FOR THE PRINTING TRADE"]
[null,null,null,2800,"CHEMICALS & ALLIED PRODUCTS"]
[null,null,null,2810,"INDUSTRIAL INORGANIC CHEMICALS"]
[null,null,null,2820,"PLASTIC MATERIAL, SYNTH RESIN/RUBBER, CELLULOS (NO GLASS)"]
[null,null,null,2821,"PLASTIC MATERIALS, SYNTH RESINS & NONVULCAN ELASTOMERS"]
[null,null,null,2833,"MEDICINAL CHEMICALS & BOTANICAL PRODUCTS"]
[null,null,null,2834,"PHARMACEUTICAL PREPARATIONS"]
[null,null,null,2835,"IN VITRO & IN VIVO DIAGNOSTIC SUBSTANCES"]
[null,null,null,2836,"BIOLOGICAL PRODUCTS, (NO DISGNOSTIC SUBSTANCES)"]
[null,null,null,2840,"SOAP, DETERGENTS, CLEANG PREPARATIONS, PERFUMES, COSMETICS"]
[null,null,null,2842,"SPECIALTY CLEANING, POLISHING AND SANITATION PREPARATIONS"]
[null,null,null,2844,"PERFUMES, COSMETICS & OTHER TOILET PREPARATIONS"]
[null,null,null,2851,"PAINTS, VARNISHES, LACQUERS, ENAMELS & ALLIED PRODS"]
[null,null,null,2860,"INDUSTRIAL ORGANIC CHEMICALS"]
[null,null,null,2870,"AGRICULTURAL CHEMICALS"]
[null,null,null,2890,"MISCELLANEOUS CHEMICAL PRODUCTS"]
[null,null,null,2891,"ADHESIVES & SEALANTS"]
[null,null,null,2911,"PETROLEUM REFINING"]
[null,null,null,2950,"ASPHALT PAVING & ROOFING MATERIALS"]
[null,null,null,2990,"MISCELLANEOUS PRODUCTS OF PETROLEUM & COAL"]
[null,null,null,3011,"TIRES & INNER TUBES"]
[null,null,null,3021,"RUBBER & PLASTICS FOOTWEAR"]
[null,null,null,3050,"GASKETS, PACKG & SEALG DEVICES & RUBBER & PLASTICS HOSE"]
[null,null,null,3060,"FABRICATED RUBBER PRODUCTS, NEC"]
[null,null,null,3080,"MISCELLANEOUS PLASTICS PRODUCTS"]
[null,null,null,3081,"UNSUPPORTED PLASTICS FILM & SHEET"]
[null,null,null,3086,"PLASTICS FOAM PRODUCTS"]
[null,null,null,3089,"PLASTICS PRODUCTS, NEC"]
[null,null,null,3100,"LEATHER & LEATHER PRODUCTS"]
[null,null,null,3140,"FOOTWEAR, (NO RUBBER)"]
[null,null,null,3211,"FLAT GLASS"]
[null,null,null,3220,"GLASS & GLASSWARE, PRESSED OR BLOWN"]
[null,null,null,3221,"GLASS CONTAINERS"]
[null,null,null,3231,"GLASS PRODUCTS, MADE OF PURCHASED GLASS"]
[null,null,null,3241,"CEMENT, HYDRAULIC"]
[null,null,null,3250,"STRUCTURAL CLAY PRODUCTS"]
[null,null,null,3260,"POTTERY & RELATED PRODUCTS"]
[null,null,null,3270,"CONCRETE, GYPSUM & PLASTER PRODUCTS"]
[null,null,null,3272,"CONCRETE PRODUCTS, EXCEPT BLOCK & BRICK"]
[null,null,null,3281,"CUT STONE & STONE PRODUCTS"]
[null,null,null,3290,"ABRASIVE, ASBESTOS & MISC NONMETALLIC MINERAL PRODS"]
[null,null,null,3310,"STEEL WORKS, BLAST FURNACES & ROLLING & FINISHING MILLS"]
[null,null,null,3312,"STEEL WORKS, BLAST FURNACES & ROLLING MILLS (COKE OVENS)"]
[null,null,null,3317,"STEEL PIPE & TUBES"]
[null,null,null,3320,"IRON & STEEL FOUNDRIES"]
[null,null,null,3330,"PRIMARY SMELTING & REFINING OF NONFERROUS METALS"]
[null,null,null,3334,"PRIMARY PRODUCTION OF ALUMINUM"]
[null,null,null,3341,"SECONDARY SMELTING & REFINING OF NONFERROUS METALS"]
[null,null,null,3350,"ROLLING DRAWING & EXTRUDING OF NONFERROUS METALS"]
[null,null,null,3357,"DRAWING & INSULATING OF NONFERROUS WIRE"]
[null,null,null,3360,"NONFERROUS FOUNDRIES (CASTINGS)"]
[null,null,null,3390,"MISCELLANEOUS PRIMARY METAL PRODUCTS"]
[null,null,null,3411,"METAL CANS"]
[null,null,null,3412,"METAL SHIPPING BARRELS, DRUMS, KEGS & PAILS"]
[null,null,null,3420,"CUTLERY, HANDTOOLS & GENERAL HARDWARE"]
[null,null,null,3430,"HEATING EQUIP, EXCEPT ELEC & WARM AIR; & PLUMBING FIXTURES"]
[null,null,null,3433,"HEATING EQUIPMENT, EXCEPT ELECTRIC & WARM AIR FURNACES"]
[null,null,null,3440,"FABRICATED STRUCTURAL METAL PRODUCTS"]
[null,null,null,3442,"METAL DOORS, SASH, FRAMES, MOLDINGS & TRIM"]
[null,null,null,3443,"FABRICATED PLATE WORK (BOILER SHOPS)"]
[null,null,null,3444,"SHEET METAL WORK"]
[null,null,null,3448,"PREFABRICATED METAL BUILDINGS & COMPONENTS"]
[null,null,null,3451,"SCREW MACHINE PRODUCTS"]
[null,null,null,3452,"BOLTS, NUTS, SCREWS, RIVETS & WASHERS"]
[null,null,null,3460,"METAL FORGINGS & STAMPINGS"]
[null,null,null,3470,"COATING, ENGRAVING & ALLIED SERVICES"]
[null,null,null,3480,"ORDNANCE & ACCESSORIES, (NO VEHICLES/GUIDED MISSILES)"]
[null,null,null,3490,"MISCELLANEOUS FABRICATED METAL PRODUCTS"]
[null,null,null,3510,"ENGINES & TURBINES"]
[null,null,null,3523,"FARM MACHINERY & EQUIPMENT"]
[null,null,null,3524,"LAWN & GARDEN TRACTORS & HOME LAWN & GARDENS EQUIP"]
[null,null,null,3530,"CONSTRUCTION, MINING & MATERIALS HANDLING MACHINERY & EQUIP"]
[null,null,null,3531,"CONSTRUCTION MACHINERY & EQUIP"]
[null,null,null,3532,"MINING MACHINERY & EQUIP (NO OIL & GAS FIELD MACH & EQUIP)"]
[null,null,null,3533,"OIL & GAS FIELD MACHINERY & EQUIPMENT"]
[null,null,null,3537,"INDUSTRIAL TRUCKS, TRACTORS, TRAILORS & STACKERS"]
[null,null,null,3540,"METALWORKG MACHINERY & EQUIPMENT"]
[null,null,null,3541,"MACHINE TOOLS, METAL CUTTING TYPES"]
[null,null,null,3550,"SPECIAL INDUSTRY MACHINERY (NO METALWORKING MACHINERY)"]
[null,null,null,3555,"PRINTING TRADES MACHINERY & EQUIPMENT"]
[null,null,null,3559,"SPECIAL INDUSTRY MACHINERY, NEC"]
[null,null,null,3560,"GENERAL INDUSTRIAL MACHINERY & EQUIPMENT"]
[null,null,null,3561,"PUMPS & PUMPING EQUIPMENT"]
[null,null,null,3562,"BALL & ROLLER BEARINGS"]
[null,null,null,3564,"INDUSTRIAL & COMMERCIAL FANS & BLOWERS & AIR PURIFING EQUIP"]
[null,null,null,3567,"INDUSTRIAL PROCESS FURNACES & OVENS"]
[null,null,null,3569,"GENERAL INDUSTRIAL MACHINERY & EQUIPMENT, NEC"]
[null,null,null,3570,"COMPUTER & OFFICE EQUIPMENT"]
[null,null,null,3571,"ELECTRONIC COMPUTERS"]
[null,null,null,3572,"COMPUTER STORAGE DEVICES"]
[null,null,null,3575,"COMPUTER TERMINALS"]
[null,null,null,3576,"COMPUTER COMMUNICATIONS EQUIPMENT"]
[null,null,null,3577,"COMPUTER PERIPHERAL EQUIPMENT, NEC"]
[null,null,null,3578,"CALCULATING & ACCOUNTING MACHINES (NO ELECTRONIC COMPUTERS)"]
[null,null,null,3579,"OFFICE MACHINES, NEC"]
[null,null,null,3580,"REFRIGERATION & SERVICE INDUSTRY MACHINERY"]
[null,null,null,3585,"AIR-COND & WARM AIR HEATG EQUIP & COMM & INDL REFRIG EQUIP"]
[null,null,null,3590,"MISC INDUSTRIAL & COMMERCIAL MACHINERY & EQUIPMENT"]
[null,null,null,3600,"ELECTRONIC & OTHER ELECTRICAL EQUIPMENT (NO COMPUTER EQUIP)"]
[null,null,null,3612,"POWER, DISTRIBUTION & SPECIALTY TRANSFORMERS"]
[null,null,null,3613,"SWITCHGEAR & SWITCHBOARD APPARATUS"]
[null,null,null,3620,"ELECTRICAL INDUSTRIAL APPARATUS"]
[null,null,null,3621,"MOTORS & GENERATORS"]
[null,null,null,3630,"HOUSEHOLD APPLIANCES"]
[null,null,null,3634,"ELECTRIC HOUSEWARES & FANS"]
[null,null,null,3640,"ELECTRIC LIGHTING & WIRING EQUIPMENT"]
[null,null,null,3651,"HOUSEHOLD AUDIO & VIDEO EQUIPMENT"]
[null,null,null,3652,"PHONOGRAPH RECORDS & PRERECORDED AUDIO TAPES & DISKS"]
[null,null,null,3661,"TELEPHONE & TELEGRAPH APPARATUS"]
[null,null,null,3663,"RADIO & TV BROADCASTING & COMMUNICATIONS EQUIPMENT"]
[null,null,null,3669,"COMMUNICATIONS EQUIPMENT, NEC"]
[null,null,null,3670,"ELECTRONIC COMPONENTS & ACCESSORIES"]
[null,null,null,3672,"PRINTED CIRCUIT BOARDS"]
[null,null,null,3674,"SEMICONDUCTORS & RELATED DEVICES"]
[null,null,null,3677,"ELECTRONIC COILS, TRANSFORMERS & OTHER INDUCTORS"]
[null,null,null,3678,"ELECTRONIC CONNECTORS"]
[null,null,null,3679,"ELECTRONIC COMPONENTS, NEC"]
[null,null,null,3690,"MISCELLANEOUS ELECTRICAL MACHINERY, EQUIPMENT & SUPPLIES"]
[null,null,null,3695,"MAGNETIC & OPTICAL RECORDING MEDIA"]
[null,null,null,3711,"MOTOR VEHICLES & PASSENGER CAR BODIES"]
[null,null,null,3713,"TRUCK & BUS BODIES"]
[null,null,null,3714,"MOTOR VEHICLE PARTS & ACCESSORIES"]
[null,null,null,3715,"TRUCK TRAILERS"]
[null,null,null,3716,"MOTOR HOMES"]
[null,null,null,3720,"AIRCRAFT & PARTS"]
[null,null,null,3721,"AIRCRAFT"]
[null,null,null,3724,"AIRCRAFT ENGINES & ENGINE PARTS"]
[null,null,null,3728,"AIRCRAFT PARTS & AUXILIARY EQUIPMENT, NEC"]
[null,null,null,3730,"SHIP & BOAT BUILDING & REPAIRING"]
[null,null,null,3743,"RAILROAD EQUIPMENT"]
[null,null,null,3751,"MOTORCYCLES, BICYCLES & PARTS"]
[null,null,null,3760,"GUIDED MISSILES & SPACE VEHICLES & PARTS"]
[null,null,null,3790,"MISCELLANEOUS TRANSPORTATION EQUIPMENT"]
[null,null,null,3812,"SEARCH, DETECTION, NAVAGATION, GUIDANCE, AERONAUTICAL SYS"]
[null,null,null,3821,"LABORATORY APPARATUS & FURNITURE"]
[null,null,null,3822,"AUTO CONTROLS FOR REGULATING RESIDENTIAL & COMML ENVIRONMENTS"]
[null,null,null,3823,"INDUSTRIAL INSTRUMENTS FOR MEASUREMENT, DISPLAY, AND CONTROL"]
[null,null,null,3824,"TOTALIZING FLUID METERS & COUNTING DEVICES"]
[null,null,null,3825,"INSTRUMENTS FOR MEAS & TESTING OF ELECTRICITY & ELEC SIGNALS"]
[null,null,null,3826,"LABORATORY ANALYTICAL INSTRUMENTS"]
[null,null,null,3827,"OPTICAL INSTRUMENTS & LENSES"]
[null,null,null,3829,"MEASURING & CONTROLLING DEVICES, NEC"]
[null,null,null,3841,"SURGICAL & MEDICAL INSTRUMENTS & APPARATUS"]
[null,null,null,3842,"ORTHOPEDIC, PROSTHETIC & SURGICAL APPLIANCES & SUPPLIES"]
[null,null,null,3843,"DENTAL EQUIPMENT & SUPPLIES"]
[null,null,null,3844,"X-RAY APPARATUS & TUBES & RELATED IRRADIATION APPARATUS"]
[null,null,null,3845,"ELECTROMEDICAL & ELECTROTHERAPEUTIC APPARATUS"]
[null,null,null,3851,"OPHTHALMIC GOODS"]
[null,null,null,3861,"PHOTOGRAPHIC EQUIPMENT & SUPPLIES"]
[null,null,null,3873,"WATCHES, CLOCKS, CLOCKWORK OPERATED DEVICES/PARTS"]
[null,null,null,3910,"JEWELRY, SILVERWARE & PLATED WARE"]
[null,null,null,3911,"JEWELRY, PRECIOUS METAL"]
[null,null,null,3931,"MUSICAL INSTRUMENTS"]
[null,null,null,3942,"DOLLS & STUFFED TOYS"]
[null,null,null,3944,"GAMES, TOYS & CHILDREN'S VEHICLES (NO DOLLS & BICYCLES)"]
[null,null,null,3949,"SPORTING & ATHLETIC GOODS, NEC"]
[null,null,null,3950,"PENS, PENCILS & OTHER ARTISTS' MATERIALS"]
[null,null,null,3960,"COSTUME JEWELRY & NOVELTIES"]
[null,null,null,3990,"MISCELLANEOUS MANUFACTURING INDUSTRIES"]
[null,null,null,4011,"RAILROADS, LINE-HAUL OPERATING"]
[null,null,null,4013,"RAILROAD SWITCHING & TERMINAL ESTABLISHMENTS"]
[null,null,null,4100,"LOCAL & SUBURBAN TRANSIT & INTERURBAN HWY PASSENGER TRANS"]
[null,null,null,4210,"TRUCKING & COURIER SERVICES (NO AIR)"]
[null,null,null,4213,"TRUCKING (NO LOCAL)"]
[null,null,null,4220,"PUBLIC WAREHOUSING & STORAGE"]
[null,null,null,4231,"TERMINAL MAINTENANCE FACILITIES FOR MOTOR FREIGHT TRANSPORT"]
[null,null,null,4400,"WATER TRANSPORTATION"]
[null,null,null,4412,"DEEP SEA FOREIGN TRANSPORTATION OF FREIGHT"]
[null,null,null,4512,"AIR TRANSPORTATION, SCHEDULED"]
[null,null,null,4513,"AIR COURIER SERVICES"]
[null,null,null,4522,"AIR TRANSPORTATION, NONSCHEDULED"]
[null,null,null,4581,"AIRPORTS, FLYING FIELDS & AIRPORT TERMINAL SERVICES"]
[null,null,null,4610,"PIPE LINES (NO NATURAL GAS)"]
[null,null,null,4700,"TRANSPORTATION SERVICES"]
[null,null,null,4731,"ARRANGEMENT OF TRANSPORTATION OF FREIGHT & CARGO"]
[null,null,null,4812,"RADIOTELEPHONE COMMUNICATIONS"]
[null,null,null,4813,"TELEPHONE COMMUNICATIONS (NO RADIOTELEPHONE)"]
[null,null,null,4822,"TELEGRAPH & OTHER MESSAGE COMMUNICATIONS"]
[null,null,null,4832,"RADIO BROADCASTING STATIONS"]
[null,null,null,4833,"TELEVISION BROADCASTING STATIONS"]
[null,null,null,4841,"CABLE & OTHER PAY TELEVISION SERVICES"]
[null,null,null,4899,"COMMUNICATIONS SERVICES, NEC"]
[null,null,null,4900,"ELECTRIC, GAS & SANITARY SERVICES"]
[null,null,null,4911,"ELECTRIC SERVICES"]
[null,null,null,4922,"NATURAL GAS TRANSMISSION"]
[null,null,null,4923,"NATURAL GAS TRANSMISISON & DISTRIBUTION"]
[null,null,null,4924,"NATURAL GAS DISTRIBUTION"]
[null,null,null,4931,"ELECTRIC & OTHER SERVICES COMBINED"]
[null,null,null,4932,"GAS & OTHER SERVICES COMBINED"]
[null,null,null,4941,"WATER SUPPLY"]
[null,null,null,4950,"SANITARY SERVICES"]
[null,null,null,4953,"REFUSE SYSTEMS"]
[null,null,null,4955,"HAZARDOUS WASTE MANAGEMENT"]
[null,null,null,4961,"STEAM & AIR-CONDITIONING SUPPLY"]
[null,null,null,4991,"COGENERATION SERVICES & SMALL POWER PRODUCERS"]
[null,null,null,5000,"WHOLESALE-DURABLE GOODS"]
[null,null,null,5010,"WHOLESALE-MOTOR VEHICLES & MOTOR VEHICLE PARTS & SUPPLIES"]
[null,null,null,5013,"WHOLESALE-MOTOR VEHICLE SUPPLIES & NEW PARTS"]
[null,null,null,5020,"WHOLESALE-FURNITURE & HOME FURNISHINGS"]
[null,null,null,5030,"WHOLESALE-LUMBER & OTHER CONSTRUCTION MATERIALS"]
[null,null,null,5031,"WHOLESALE-LUMBER, PLYWOOD, MILLWORK & WOOD PANELS"]
[null,null,null,5040,"WHOLESALE-PROFESSIONAL & COMMERCIAL EQUIPMENT & SUPPLIES"]
[null,null,null,5045,"WHOLESALE-COMPUTERS & PERIPHERAL EQUIPMENT & SOFTWARE"]
[null,null,null,5047,"WHOLESALE-MEDICAL, DENTAL & HOSPITAL EQUIPMENT & SUPPLIES"]
[null,null,null,5050,"WHOLESALE-METALS & MINERALS (NO PETROLEUM)"]
[null,null,null,5051,"WHOLESALE-METALS SERVICE CENTERS & OFFICES"]
[null,null,null,5063,"WHOLESALE-ELECTRICAL APPARATUS & EQUIPMENT, WIRING SUPPLIES"]
[null,null,null,5064,"WHOLESALE-ELECTRICAL APPLIANCES, TV & RADIO SETS"]
[null,null,null,5065,"WHOLESALE-ELECTRONIC PARTS & EQUIPMENT, NEC"]
[null,null,null,5070,"WHOLESALE-HARDWARE & PLUMBING & HEATING EQUIPMENT & SUPPLIES"]
[null,null,null,5072,"WHOLESALE-HARDWARE"]
[null,null,null,5080,"WHOLESALE-MACHINERY, EQUIPMENT & SUPPLIES"]
[null,null,null,5082,"WHOLESALE-CONSTRUCTION & MINING (NO PETRO) MACHINERY & EQUIP"]
[null,null,null,5084,"WHOLESALE-INDUSTRIAL MACHINERY & EQUIPMENT"]
[null,null,null,5090,"WHOLESALE-MISC DURABLE GOODS"]
[null,null,null,5094,"WHOLESALE-JEWELRY, WATCHES, PRECIOUS STONES & METALS"]
[null,null,null,5099,"WHOLESALE-DURABLE GOODS, NEC"]
[null,null,null,5110,"WHOLESALE-PAPER & PAPER PRODUCTS"]
[null,null,null,5122,"WHOLESALE-DRUGS, PROPRIETARIES & DRUGGISTS' SUNDRIES"]
[null,null,null,5130,"WHOLESALE-APPAREL, PIECE GOODS & NOTIONS"]
[null,null,null,5140,"WHOLESALE-GROCERIES & RELATED PRODUCTS"]
[null,null,null,5141,"WHOLESALE-GROCERIES, GENERAL LINE"]
[null,null,null,5150,"WHOLESALE-FARM PRODUCT RAW MATERIALS"]
[null,null,null,5160,"WHOLESALE-CHEMICALS & ALLIED PRODUCTS"]
[null,null,null,5171,"WHOLESALE-PETROLEUM BULK STATIONS & TERMINALS"]
[null,null,null,5172,"WHOLESALE-PETROLEUM & PETROLEUM PRODUCTS (NO BULK STATIONS)"]
[null,null,null,5180,"WHOLESALE-BEER, WINE & DISTILLED ALCOHOLIC BEVERAGES"]
[null,null,null,5190,"WHOLESALE-MISCELLANEOUS NONDURABLE GOODS"]
[null,null,null,5200,"RETAIL-BUILDING MATERIALS, HARDWARE, GARDEN SUPPLY"]
[null,null,null,5211,"RETAIL-LUMBER & OTHER BUILDING MATERIALS DEALERS"]
[null,null,null,5271,"RETAIL-MOBILE HOME DEALERS"]
[null,null,null,5311,"RETAIL-DEPARTMENT STORES"]
[null,null,null,5331,"RETAIL-VARIETY STORES"]
[null,null,null,5399,"RETAIL-MISC GENERAL MERCHANDISE STORES"]
[null,null,null,5400,"RETAIL-FOOD STORES"]
[null,null,null,5411,"RETAIL-GROCERY STORES"]
[null,null,null,5412,"RETAIL-CONVENIENCE STORES"]
[null,null,null,5500,"RETAIL-AUTO DEALERS & GASOLINE STATIONS"]
[null,null,null,5531,"RETAIL-AUTO & HOME SUPPLY STORES"]
[null,null,null,5600,"RETAIL-APPAREL & ACCESSORY STORES"]
[null,null,null,5621,"RETAIL-WOMEN'S CLOTHING STORES"]
[null,null,null,5651,"RETAIL-FAMILY CLOTHING STORES"]
[null,null,null,5661,"RETAIL-SHOE STORES"]
[null,null,null,5700,"RETAIL-HOME FURNITURE, FURNISHINGS & EQUIPMENT STORES"]
[null,null,null,5712,"RETAIL-FURNITURE STORES"]
[null,null,null,5731,"RETAIL-RADIO, TV & CONSUMER ELECTRONICS STORES"]
[null,null,null,5734,"RETAIL-COMPUTER & COMPUTER SOFTWARE STORES"]
[null,null,null,5735,"RETAIL-RECORD & PRERECORDED TAPE STORES"]
[null,null,null,5810,"RETAIL-EATING & DRINKING PLACES"]
[null,null,null,5812,"RETAIL-EATING PLACES"]
[null,null,null,5900,"RETAIL-MISCELLANEOUS RETAIL"]
[null,null,null,5912,"RETAIL-DRUG STORES AND PROPRIETARY STORES"]
[null,null,null,5940,"RETAIL-MISCELLANEOUS SHOPPING GOODS STORES"]
[null,null,null,5944,"RETAIL-JEWELRY STORES"]
[null,null,null,5945,"RETAIL-HOBBY, TOY & GAME SHOPS"]
[null,null,null,5960,"RETAIL-NONSTORE RETAILERS"]
[null,null,null,5961,"RETAIL-CATALOG & MAIL-ORDER HOUSES"]
[null,null,null,5990,"RETAIL-RETAIL STORES, NEC"]
[null,null,null,6021,"NATIONAL COMMERCIAL BANKS"]
[null,null,null,6022,"STATE COMMERCIAL BANKS"]
[null,null,null,6029,"COMMERCIAL BANKS, NEC"]
[null,null,null,6035,"SAVINGS INSTITUTION, FEDERALLY CHARTERED"]
[null,null,null,6036,"SAVINGS INSTITUTIONS, NOT FEDERALLY CHARTERED"]
[null,null,null,6099,"FUNCTIONS RELATED TO DEPOSITORY BANKING, NEC"]
[null,null,null,6111,"FEDERAL & FEDERALLY-SPONSORED CREDIT AGENCIES"]
[null,null,null,6141,"PERSONAL CREDIT INSTITUTIONS"]
[null,null,null,6153,"SHORT-TERM BUSINESS CREDIT INSTITUTIONS"]
[null,null,null,6159,"MISCELLANEOUS BUSINESS CREDIT INSTITUTION"]
[null,null,null,6162,"MORTGAGE BANKERS & LOAN CORRESPONDENTS"]
[null,null,null,6163,"LOAN BROKERS"]
[null,null,null,6172,"FINANCE LESSORS"]
[null,null,null,6189,"ASSET-BACKED SECURITIES"]
[null,null,null,6199,"FINANCE SERVICES"]
[null,null,null,6200,"SECURITY & COMMODITY BROKERS, DEALERS, EXCHANGES & SERVICES"]
[null,null,null,6211,"SECURITY BROKERS, DEALERS & FLOTATION COMPANIES"]
[null,null,null,6221,"COMMODITY CONTRACTS BROKERS & DEALERS"]
[null,null,null,6282,"INVESTMENT ADVICE"]
[null,null,null,6311,"LIFE INSURANCE"]
[null,null,null,6321,"ACCIDENT & HEALTH INSURANCE"]
[null,null,null,6324,"HOSPITAL & MEDICAL SERVICE PLANS"]
[null,null,null,6331,"FIRE, MARINE & CASUALTY INSURANCE"]
[null,null,null,6351,"SURETY INSURANCE"]
[null,null,null,6361,"TITLE INSURANCE"]
[null,null,null,6399,"INSURANCE CARRIERS, NEC"]
[null,null,null,6411,"INSURANCE AGENTS, BROKERS & SERVICE"]
[null,null,null,6500,"REAL ESTATE"]
[null,null,null,6510,"REAL ESTATE OPERATORS (NO DEVELOPERS) & LESSORS"]
[null,null,null,6512,"OPERATORS OF NONRESIDENTIAL BUILDINGS"]
[null,null,null,6513,"OPERATORS OF APARTMENT BUILDINGS"]
[null,null,null,6519,"LESSORS OF REAL PROPERTY, NEC"]
[null,null,null,6531,"REAL ESTATE AGENTS & MANAGERS (FOR OTHERS)"]
[null,null,null,6532,"REAL ESTATE DEALERS (FOR THEIR OWN ACCOUNT)"]
[null,null,null,6552,"LAND SUBDIVIDERS & DEVELOPERS (NO CEMETERIES)"]
[null,null,null,6770,"BLANK CHECKS"]
[null,null,null,6792,"OIL ROYALTY TRADERS"]
[null,null,null,6794,"PATENT OWNERS & LESSORS"]
[null,null,null,6795,"MINERAL ROYALTY TRADERS"]
[null,null,null,6798,"REAL ESTATE INVESTMENT TRUSTS"]
[null,null,null,6799,"INVESTORS, NEC"]
[null,null,null,7000,"HOTELS, ROOMING HOUSES, CAMPS & OTHER LODGING PLACES"]
[null,null,null,7011,"HOTELS & MOTELS"]
[null,null,null,7200,"SERVICES-PERSONAL SERVICES"]
[null,null,null,7310,"SERVICES-ADVERTISING"]
[null,null,null,7311,"SERVICES-ADVERTISING AGENCIES"]
[null,null,null,7320,"SERVICES-CONSUMER CREDIT REPORTING, COLLECTION AGENCIES"]
[null,null,null,7330,"SERVICES-MAILING, REPRODUCTION, COMMERCIAL ART & PHOTOGRAPHY"]
[null,null,null,7331,"SERVICES-DIRECT MAIL ADVERTISING SERVICES"]
[null,null,null,7340,"SERVICES-TO DWELLINGS & OTHER BUILDINGS"]
[null,null,null,7350,"SERVICES-MISCELLANEOUS EQUIPMENT RENTAL & LEASING"]
[null,null,null,7359,"SERVICES-EQUIPMENT RENTAL & LEASING, NEC"]
[null,null,null,7361,"SERVICES-EMPLOYMENT AGENCIES"]
[null,null,null,7363,"SERVICES-HELP SUPPLY SERVICES"]
[null,null,null,7370,"SERVICES-COMPUTER PROGRAMMING, DATA PROCESSING, ETC."]
[null,null,null,7371,"SERVICES-COMPUTER PROGRAMMING SERVICES"]
[null,null,null,7372,"SERVICES-PREPACKAGED SOFTWARE"]
[null,null,null,7373,"SERVICES-COMPUTER INTEGRATED SYSTEMS DESIGN"]
[null,null,null,7374,"SERVICES-COMPUTER PROCESSING & DATA PREPARATION"]
[null,null,null,7377,"SERVICES-COMPUTER RENTAL & LEASING"]
[null,null,null,7380,"SERVICES-MISCELLANEOUS BUSINESS SERVICES"]
[null,null,null,7381,"SERVICES-DETECTIVE, GUARD & ARMORED CAR SERVICES"]
[null,null,null,7384,"SERVICES-PHOTOFINISHING LABORATORIES"]
[null,null,null,7385,"SERVICES-TELEPHONE INTERCONNECT SYSTEMS"]
[null,null,null,7389,"SERVICES-BUSINESS SERVICES, NEC"]
[null,null,null,7500,"SERVICES-AUTOMOTIVE REPAIR, SERVICES & PARKING"]
[null,null,null,7510,"SERVICES-AUTO RENTAL & LEASING (NO DRIVERS)"]
[null,null,null,7600,"SERVICES-MISCELLANEOUS REPAIR SERVICES"]
[null,null,null,7812,"SERVICES-MOTION PICTURE & VIDEO TAPE PRODUCTION"]
[null,null,null,7819,"SERVICES-ALLIED TO MOTION PICTURE PRODUCTION"]
[null,null,null,7822,"SERVICES-MOTION PICTURE & VIDEO TAPE DISTRIBUTION"]
[null,null,null,7829,"SERVICES-ALLIED TO MOTION PICTURE DISTRIBUTION"]
[null,null,null,7830,"SERVICES-MOTION PICTURE THEATERS"]
[null,null,null,7841,"SERVICES-VIDEO TAPE RENTAL"]
[null,null,null,7900,"SERVICES-AMUSEMENT & RECREATION SERVICES"]
[null,null,null,7948,"SERVICES-RACING, INCLUDING TRACK OPERATION"]
[null,null,null,7990,"SERVICES-MISCELLANEOUS AMUSEMENT & RECREATION"]
[null,null,null,7997,"SERVICES-MEMBERSHIP SPORTS & RECREATION CLUBS"]
[null,null,null,8000,"SERVICES-HEALTH SERVICES"]
[null,null,null,8011,"SERVICES-OFFICES & CLINICS OF DOCTORS OF MEDICINE"]
[null,null,null,8050,"SERVICES-NURSING & PERSONAL CARE FACILITIES"]
[null,null,null,8051,"SERVICES-SKILLED NURSING CARE FACILITIES"]
[null,null,null,8060,"SERVICES-HOSPITALS"]
[null,null,null,8062,"SERVICES-GENERAL MEDICAL & SURGICAL HOSPITALS, NEC"]
[null,null,null,8071,"SERVICES-MEDICAL LABORATORIES"]
[null,null,null,8082,"SERVICES-HOME HEALTH CARE SERVICES"]
[null,null,null,8090,"SERVICES-MISC HEALTH & ALLIED SERVICES, NEC"]
[null,null,null,8093,"SERVICES-SPECIALTY OUTPATIENT FACILITIES, NEC"]
[null,null,null,8111,"SERVICES-LEGAL SERVICES"]
[null,null,null,8200,"SERVICES-EDUCATIONAL SERVICES"]
[null,null,null,8300,"SERVICES-SOCIAL SERVICES"]
[null,null,null,8351,"SERVICES-CHILD DAY CARE SERVICES"]
[null,null,null,8600,"SERVICES-MEMBERSHIP ORGANIZATIONS"]
[null,null,null,8700,"SERVICES-ENGINEERING, ACCOUNTING, RESEARCH, MANAGEMENT"]
[null,null,null,8711,"SERVICES-ENGINEERING SERVICES"]
[null,null,null,8731,"SERVICES-COMMERCIAL PHYSICAL & BIOLOGICAL RESEARCH"]
[null,null,null,8734,"SERVICES-TESTING LABORATORIES"]
[null,null,null,8741,"SERVICES-MANAGEMENT SERVICES"]
[null,null,null,8742,"SERVICES-MANAGEMENT CONSULTING SERVICES"]
[null,null,null,8744,"SERVICES-FACILITIES SUPPORT MANAGEMENT SERVICES"]
[null,null,null,8880,"AMERICAN DEPOSITARY RECEIPTS"]
[null,null,null,8888,"FOREIGN GOVERNMENTS"]
[null,null,null,8900,"SERVICES-SERVICES, NEC"]
[null,null,null,9721,"INTERNATIONAL AFFAIRS"]
[null,null,null,9995,"NON-OPERATING ESTABLISHMENTS"]

{"sheet":"Notes","index":1,"n_rows":93,"n_cols":40,"rows_kept":93,"cut":false,"hidden":false,"merged":[[70,2,70,33],[4,39,4,85],[2,39,2,85],[16,39,16,85],[6,2,6,33],[4,2,4,33],[2,2,2,33],[37,2,37,33],[68,2,68,33]]}
[]
[]
[null,null,"TO ENABLE MACROS",null,null,null,null,null,null,null,null,null,null,null,null,null,null,null,null,null,null,null,null,null,null,null,null,null,null,null,null,null,null,null,null,null,null,null,null,"TO ENABLE EMAIL FEATURE"]
[]
[null,null,"1) File ---> Options (bottom)",null,null,null,null,null,null,null,null,null,null,null,null,null,null,null,null,null,null,null,null,null,null,null,null,null,null,null,null,null,null,null,null,null,null,null,null,"1) Right click any blank space in top ribbon ---> Click Customize The Ribbon…"]
[]
[null,null,"2) Select Trust Center from left side ribbon (bottom) and click Trust Center Settings… button"]
[]
[]
[]
[]
[]
[]
[]
[]
[]
[null,null,null,null,null,null,null,null,null,null,null,null,null,null,null,null,null,null,null,null,null,null,null,null,null,null,null,null,null,null,null,null,null,null,null,null,null,null,null,"2) Check Developer from list on right side and hit OK"]
[]
[]
[]
[]
[]
[]
[]
[]
[]
[]
[]
[]
[]
[]
[]
[]
[]
[]
[]
[]
[null,null,"3) Select Macro Settings from left side ribbon (middle) and select Enable VBA macros (not recommended; potentially dangerous code can run) button"]
[]
[]
[]
[]
[]
[]
[]
[]
[]
[]
[]
[]
[]
[]
[null,null,null,null,null,null,null,null,null,null,null,null,null,null,null,null,null,null,null,null,null,null,null,null,null,null,null,null,null,null,null,null,null,null,null,null,null,null,null,"3) Go to Developer toolbar (left of Help) and click Visual Basic (first option)"]
[]
[]
[]
[]
[]
[]
[]
[]
[]
[]
[]
[]
[]
[null,null,null,null,null,null,null,null,null,null,null,null,null,null,null,null,null,null,null,null,null,null,null,null,null,null,null,null,null,null,null,null,null,null,null,null,null,null,null,"4) Go to Tools (top options bar) and click References... (first option) and check Microsoft Outlook 16.0 Object Library and hit OK"]
[]
[null,null,"4) Hit OK and OK"]
[]
[null,null,"5) Restart Excel"]
[]
[]
[]
[]
[]
[]
[]
[]
[]
[]
[]
[]
[]
[]
[]
[]
[]
[]
[]
[]
[]
[null,null,null,null,null,null,null,null,null,null,null,null,null,null,null,null,null,null,null,null,null,null,null,null,null,null,null,null,null,null,null,null,null,null,null,null,null,null,null,"5) Close VBA window and restart Excel"]

{"sheet":"NCNF","index":2,"n_rows":209,"n_cols":47,"rows_kept":209,"cut":false,"hidden":false,"merged":[[118,21,118,23],[116,23,116,28],[116,30,116,32],[142,25,142,27],[146,43,146,50],[146,35,146,41],[46,39,46,50],[122,6,122,10],[108,39,108,50],[116,40,116,50],[112,12,112,50],[138,12,138,14],[138,16,138,19],[138,21,138,23],[110,12,110,15],[114,6,114,10],[84,6,84,10],[106,26,106,28],[106,30,106,31],[110,17,110,19],[110,21,110,24],[110,26,110,28],[116,12,116,21],[118,12,118,14],[116,6,116,10],[118,6,118,10],[118,16,118,19],[146,2,146,4],[160,18,160,22],[172,12,172,22],[144,6,144,10],[140,6,140,10],[142,6,142,10],[142,12,142,14],[142,16,142,19],[142,21,142,23],[146,12,146,14],[144,2,144,4],[140,2,140,4],[146,6,146,10],[124,6,124,10],[152,6,152,14],[154,6,154,10],[154,12,154,19],[156,6,156,15],[170,2,170,4],[154,2,154,4],[152,2,152,4],[2,38,2,50],[2,2,2,37],[160,6,160,10],[170,6,170,10],[170,12,170,29],[48,12,48,15],[134,12,134,14],[134,16,134,29],[160,12,160,16],[114,2,114,4],[130,2,130,4],[116,34,116,39],[130,12,130,14],[130,16,130,29],[120,25,120,27],[136,2,136,4],[136,6,136,10],[138,45,138,47],[138,25,138,27],[148,6,148,10],[148,2,148,4],[162,2,162,4],[44,12,44,21],[44,26,44,37],[4,2,4,50],[27,2,27,50],[29,2,29,9],[31,2,31,9],[20,45,20,50],[6,11,6,37],[12,11,12,37],[14,11,14,37],[16,11,16,37],[18,11,18,37],[20,11,20,37],[12,39,12,43],[14,39,14,43],[16,39,16,43],[29,40,29,50],[24,2,24,9],[22,11,22,50],[16,2,16,9],[18,2,18,9],[20,2,20,9],[8,11,8,37],[10,34,10,37],[8,39,8,43],[6,45,6,50],[8,45,8,50],[10,45,10,50],[10,31,10,32],[6,39,6,43],[10,39,10,43],[6,2,6,9],[8,2,8,9],[10,2,10,9],[10,11,10,29],[12,45,12,50],[14,45,14,50],[33,2,33,9],[31,31,31,38],[29,31,29,38],[29,11,29,29],[31,11,31,29],[24,11,24,50],[33,40,33,50],[33,31,33,38],[33,11,33,29],[31,40,31,42],[31,44,31,49],[20,39,20,43],[18,39,18,43],[18,45,18,50],[12,2,12,9],[14,2,14,9],[22,2,22,9],[16,45,16,50],[35,2,35,9],[37,2,37,9],[39,2,39,9],[37,31,37,38],[35,31,35,38],[39,31,39,38],[35,11,35,29],[106,23,106,24],[46,12,46,21],[48,6,48,10],[64,12,64,15],[66,6,66,10],[67,6,67,10],[68,6,68,10],[69,6,69,10],[70,6,70,10],[72,6,72,10],[73,6,73,10],[65,6,65,10],[98,6,98,10],[99,6,99,10],[100,6,100,10],[37,11,37,29],[39,11,39,29],[42,2,42,50],[44,2,44,4],[104,2,104,4],[44,6,44,10],[46,6,46,10],[104,6,104,10],[35,40,35,50],[37,40,37,50],[39,40,39,50],[46,23,46,30],[46,32,46,37],[104,12,104,25],[85,6,85,10],[86,6,86,10],[88,6,88,10],[101,6,101,10],[102,6,102,10],[49,6,49,10],[57,6,57,10],[58,12,58,15],[59,6,59,10],[60,6,60,10],[61,6,61,10],[62,6,62,10],[106,12,106,21],[56,39,56,50],[63,6,63,10],[64,6,64,10],[50,6,50,10],[51,6,51,10],[52,6,52,10],[53,6,53,10],[54,6,54,10],[56,6,56,10],[58,6,58,10],[56,12,56,15],[56,17,56,19],[56,21,56,27],[56,29,56,37],[58,17,58,34],[88,12,88,15],[96,12,96,15],[110,37,110,50],[112,6,112,10],[110,6,110,10],[106,33,106,35],[138,37,138,39],[74,6,74,10],[75,6,75,10],[76,6,76,10],[77,6,77,10],[78,6,78,10],[80,6,80,10],[81,6,81,10],[120,6,120,10],[120,12,120,14],[120,16,120,19],[120,21,120,23],[120,29,120,31],[82,6,82,10],[83,6,83,10],[128,12,128,50],[138,6,138,10],[138,29,138,31],[138,33,138,35],[106,6,106,10],[179,38,179,40],[179,42,179,44],[179,46,179,48],[178,10,178,12],[174,2,174,50],[132,2,132,4],[89,6,89,10],[90,6,90,10],[91,6,91,10],[92,6,92,10],[93,6,93,10],[94,6,94,10],[95,6,95,10],[96,6,96,10],[97,6,97,10],[130,6,130,10],[132,6,132,10],[108,6,108,10],[108,12,108,14],[108,16,108,19],[108,21,108,23],[108,25,108,37],[110,30,110,31],[110,33,110,35],[166,12,166,27],[178,28,178,30],[178,14,178,16],[150,2,150,4],[150,6,150,11],[162,6,162,10],[166,6,166,10],[178,34,178,36],[179,22,179,24],[179,18,179,20],[179,14,179,16],[179,10,179,12],[177,10,177,12],[176,9,176,25],[177,14,177,16],[177,18,177,20],[177,22,177,24],[179,34,179,36],[122,12,122,14],[124,12,124,14],[126,12,126,14],[122,16,122,22],[124,16,124,22],[126,16,126,22],[142,29,142,31],[176,27,176,31],[152,16,152,21],[158,6,158,15],[148,13,148,22],[150,13,150,15],[150,17,150,19],[150,21,150,25],[150,27,150,31],[146,16,146,26],[134,6,134,10],[164,6,164,50],[168,6,168,50],[172,6,172,10],[142,33,142,50],[144,12,144,14],[144,16,144,26],[162,12,162,27],[146,28,146,33],[176,3,176,7],[160,24,160,34],[128,6,128,10],[126,6,126,10],[176,33,176,49],[132,12,132,14],[132,16,132,29],[178,38,178,40],[178,42,178,44],[178,46,178,48],[177,34,177,36],[177,38,177,40],[177,42,177,44],[177,46,177,48],[138,41,138,43],[134,2,134,4],[178,18,178,20],[178,22,178,24],[160,2,160,4],[158,2,158,4],[156,2,156,4],[166,2,166,4],[178,4,178,6]]}
[]
[]
[null,null,"NEW CLIENT NOTIFICATION FORM",null,null,null,null,null,null,null,null,null,null,null,null,null,null,null,null,null,null,null,null,null,null,null,null,null,null,null,null,null,null,null,null,null,null,null,{"$error":"#VALUE!"}]
[]
[null,null,"CLIENT"]
[]
[null,null,"Client's Legal Name",null,null,null,null,null,null,null,null,null,null,null,null,null,null,null,null,null,null,null,null,null,null,null,null,null,null,null,null,null,null,null,null,null,null,null,null,"TIN"]
[]
[null,null,"Name for ID Card",null,null,null,null,null,null,null,null,null,null,null,null,null,null,null,null,null,null,null,null,null,null,null,null,null,null,null,null,null,null,null,null,null,null,null,null,"Effective Date"]
[]
[null,null,"Corporate Address",null,null,null,null,null,null,null,null,null,null,null,null,null,null,null,null,null,null,null,null,null,null,null,null,null,null,null,null,"State",null,null,null,null,null,null,null,"Zip"]
[]
[null,null,"Nature of Business",null,null,null,null,null,null,null,null,{"$f":"IF(AT13=\"\",\"\",_xlfn.XLOOKUP(AT13,Key!D:D,Key!E:E))","v":""},null,null,null,null,null,null,null,null,null,null,null,null,null,null,null,null,null,null,null,null,null,null,null,null,null,null,null,"SIC Code"]
[]
[null,null,"Current Funding",null,null,null,null,null,null,null,null,null,null,null,null,null,null,null,null,null,null,null,null,null,null,null,null,null,null,null,null,null,null,null,null,null,null,null,null,{"$f":"IF(L15=\"Self Insured\", \"Run-In Needed?\",\"\")","v":""}]
[]
[null,null,"Current Administrator",null,null,null,null,null,null,null,null,null,null,null,null,null,null,null,null,null,null,null,null,null,null,null,null,null,null,null,null,null,null,null,null,null,null,null,null,"Subscribers"]
[]
[null,null,"Current Network",null,null,null,null,null,null,null,null,null,null,null,null,null,null,null,null,null,null,null,null,null,null,null,null,null,null,null,null,null,null,null,null,null,null,null,null,"HSA Account w Bank"]
[]
[null,null,"Current PBM",null,null,null,null,null,null,null,null,null,null,null,null,null,null,null,null,null,null,null,null,null,null,null,null,null,null,null,null,null,null,null,null,null,null,null,null,"Retained Rebates?"]
[]
[null,null,"Reason For Moving"]
[]
[null,null,"Client Expectations"]
[]
[]
[null,null,"TEAM"]
[]
[null,null,"Broker Contact",null,null,null,null,null,null,null,null,null,null,null,null,null,null,null,null,null,null,null,null,null,null,null,null,null,null,null,null,"GA"]
[]
[null,null,"Brokerage",null,null,null,null,null,null,null,null,null,null,null,null,null,null,null,null,null,null,null,null,null,null,null,null,null,null,null,null,"New Broker",null,null,null,null,null,null,null,null,null,null,null,null,{"$f":"IF(AO32=\"Yes\",\"W-9 Required\",\"\")","v":""}]
[]
[null,null,"Sales Executive",null,null,null,null,null,null,null,{"$f":"IF(L34=\"\",\"\",_xlfn.XLOOKUP(L34,Key!I:I,Key!J:J))","v":""},null,null,null,null,null,null,null,null,null,null,null,null,null,null,null,null,null,null,null,null,"Underwriter",null,null,null,null,null,null,null,{"$f":"IF(AO34=\"\",\"\",_xlfn.XLOOKUP(AO34,Key!K:K,Key!L:L))","v":""}]
[]
[null,null,"Senior Consultant",null,null,null,null,null,null,null,{"$f":"IF(L36=\"\",\"\",_xlfn.XLOOKUP(L36,Key!M:M,Key!N:N))","v":""},null,null,null,null,null,null,null,null,null,null,null,null,null,null,null,null,null,null,null,null,"Senior Account Manager",null,null,null,null,null,null,null,{"$f":"IF(AO36=\"\",\"\",_xlfn.XLOOKUP(AO36,Key!O:O,Key!P:P))","v":""}]
[]
[null,null,"Pharmacy Liason",null,null,null,null,null,null,null,{"$f":"IF(L38=\"\",\"\",_xlfn.XLOOKUP(L38,Key!S:S,Key!T:T))","v":""},null,null,null,null,null,null,null,null,null,null,null,null,null,null,null,null,null,null,null,null,"Account Coordinator",null,null,null,null,null,null,null,{"$f":"IF(AO38=\"\",\"\",_xlfn.XLOOKUP(AO38,Key!Q:Q,Key!R:R))","v":""}]
[]
[null,null,"LH Client Manager",null,null,null,null,null,null,null,{"$f":"IF(L40=\"\",\"\",_xlfn.XLOOKUP(L40,Key!U:U,Key!V:V))","v":""},null,null,null,null,null,null,null,null,null,null,null,null,null,null,null,null,null,null,null,null,"LH Client Coordinator",null,null,null,null,null,null,null,{"$f":"IF(AO40=\"\",\"\",_xlfn.XLOOKUP(AO40,Key!W:W,Key!X:X))","v":""}]
[]
[]
[null,null,"PRODUCTS & SERVICES SOLD"]
[]
[null,null,null,null,null,null,"Medical",null,null,null,null,null,{"$f":"IF(OR(M47=\"Anthem\",M47=\"Highmark\"),\"Signed JAA Required\",\"\")","v":""},null,null,null,null,null,null,null,null,null,null,null,null,null,{"$f":"IF(M47=\"Anthem\",\"Anthem OON Required\",\"\")","v":""}]
[]
[null,null,null,null,null,null,"Network",null,null,null,null,null,null,null,null,null,null,null,null,null,null,null,null,"Out of Network Vendor",null,null,null,null,null,null,null,null,null,null,null,null,null,null,null,{"$f":"IF(M47=\"Anthem\",\"Requires 60 Days to Implement\",\"\")","v":""}]
[]
[null,null,null,null,null,null,"Network Platform"]
[null,null,null,null,null,null,"Aetna2"]
[null,null,null,null,null,null,"Aetna3"]
[null,null,null,null,null,null,"Aetna4"]
[null,null,null,null,null,null,"Aetna5"]
[null,null,null,null,null,null,"Aetna6"]
[null,null,null,null,null,null,"Aetna7"]
[]
[null,null,null,null,null,null,"State",null,null,null,null,null,null,null,null,null,null,"Model",null,null,null,null,null,null,null,null,null,null,null,{"$f":"IF(M57=\"\",\"\",IF(OR(M57=\"California\",M57=\"CA\"),\"Choose Aggregator or Traditional\",\"Aggregator Model Required\"))","v":""},null,null,null,null,null,null,null,null,null,{"$f":"IF(V57=\"Aggregator\",\"Sales Must Communicate Cost to Client\",\"\")","v":""}]
[]
[null,null,null,null,null,null,"LiveHealth Online",null,null,null,null,null,null,null,null,null,null,{"$f":"IF(M59=\"Yes\",\"Cannot have Teladoc when group currently has LiveHealth Online\",\"\")","v":""}]
[null,null,null,null,null,null,"Anthem4"]
[null,null,null,null,null,null,"Anthem5"]
[null,null,null,null,null,null,"Anthem6"]
[null,null,null,null,null,null,"Anthem7"]
[]
[null,null,null,null,null,null,"Simplicity"]
[null,null,null,null,null,null,"Cigna2"]
[null,null,null,null,null,null,"Cigna3"]
[null,null,null,null,null,null,"Cigna4"]
[null,null,null,null,null,null,"Cigna5"]
[null,null,null,null,null,null,"Cigna6"]
[null,null,null,null,null,null,"Cigna7"]
[]
[null,null,null,null,null,null,"Highmark1"]
[null,null,null,null,null,null,"Highmark2"]
[null,null,null,null,null,null,"Highmark3"]
[null,null,null,null,null,null,"Highmark4"]
[null,null,null,null,null,null,"Highmark5"]
[null,null,null,null,null,null,"Highmark6"]
[null,null,null,null,null,null,"Highmark7"]
[]
[null,null,null,null,null,null,"UHC1"]
[null,null,null,null,null,null,"UHC2"]
[null,null,null,null,null,null,"UHC3"]
[null,null,null,null,null,null,"UHC4"]
[null,null,null,null,null,null,"UHC5"]
[null,null,null,null,null,null,"UHC6"]
[null,null,null,null,null,null,"UHC7"]
[]
[null,null,null,null,null,null,"Network"]
[null,null,null,null,null,null,"RBP - AMPS2"]
[null,null,null,null,null,null,"RBP - AMPS3"]
[null,null,null,null,null,null,"RBP - AMPS4"]
[null,null,null,null,null,null,"RBP - AMPS5"]
[null,null,null,null,null,null,"RBP - AMPS6"]
[null,null,null,null,null,null,"RBP - AMPS7"]
[]
[null,null,null,null,null,null,"Network"]
[null,null,null,null,null,null,"RBP - ELAP2"]
[null,null,null,null,null,null,"RBP - ELAP3"]
[null,null,null,null,null,null,"RBP - ELAP4"]
[null,null,null,null,null,null,"RBP - ELAP5"]
[null,null,null,null,null,null,"RBP - ELAP6"]
[null,null,null,null,null,null,"RBP - ELAP7"]
[]
[null,null,null,null,null,null,"Stop Loss",null,null,null,null,null,{"$f":"IF(C105=\"Yes\",\"Submit signed stop loss application with NCNF\",\"\")","v":""}]
[]
[null,null,null,null,null,null,"Carrier",null,null,null,null,null,null,null,null,null,null,null,null,null,null,null,null,"ISL",null,null,null,null,null,null,"ASL"]
[]
[null,null,null,null,null,null,"Captive",null,null,null,null,null,null,null,null,null,{"$f":"IF(M109=\"Yes\",\"1st Renewal\",\"\")","v":""},null,null,null,null,null,null,null,null,{"$f":"IF(M109=\"Yes\",\"Submit signed Captive Agreement with NSNF\",\"\")","v":""},null,null,null,null,null,null,null,null,null,null,null,null,null,{"$f":"IF(M109=\"Yes\",\"Sales Must Communicate Cost to Client\",\"\")","v":""}]
[]
[null,null,null,null,null,null,"Spec Level",null,null,null,null,null,null,null,null,null,null,"Agg Spec",null,null,null,null,null,null,null,null,"Lasers",null,null,null,null,null,null,{"$f":"IF(AE111=\"Yes\",\"Explain:\",\"\")","v":""}]
[]
[null,null,null,null,null,null,"Special Notes"]
[]
[null,null,null,null,null,null,"Pharmacy"]
[]
[null,null,null,null,null,null,"PBM",null,null,null,null,null,null,null,null,null,null,null,null,null,null,null,null,"Rebate Retention",null,null,null,null,null,null,null,null,null,null,{"$f":"IF(AE117=\"EVHC (std)\",\"EVHC Retains 100%\",IF(AE117=\"Client\",\"Client Retains 100%\",IF(AE117=\"Other\",\"Explain:\",\"\")))","v":""}]
[]
[null,null,null,null,null,null,"MedAssist",null,null,null,null,null,null,null,null,null,"CRx"]
[]
[null,null,null,null,null,null,"Cost Saver",null,null,null,null,null,null,null,null,null,"PriceMD",null,null,null,null,null,null,null,null,"CRx"]
[]
[null,null,null,null,null,null,"Copays",null,null,null,null,null,null,null,null,null,{"$f":"IF(M123=\"Other\",\"Explain in Special Notes\",\"\")","v":""}]
[]
[null,null,null,null,null,null,"Accums",null,null,null,null,null,null,null,null,null,{"$f":"IF(M125=\"Other\",\"Explain in Special Notes\",\"\")","v":""}]
[]
[null,null,null,null,null,null,"Preventative List",null,null,null,null,null,null,null,null,null,{"$f":"IF(M127=\"Other\",\"Explain in Special Notes\",\"\")","v":""}]
[]
[null,null,null,null,null,null,"Special Notes"]
[]
[null,null,null,null,null,null,"Dental",null,null,null,null,null,{"$f":"IF(C131=\"Yes\",\"Network\",\"\")","v":""}]
[]
[null,null,null,null,null,null,"Vision",null,null,null,null,null,{"$f":"IF(C133=\"Yes\",\"Network\",\"\")","v":""}]
[]
[null,null,null,null,null,null,"HSA",null,null,null,null,null,{"$f":"IF(C135=\"Yes\",\"Vendor\",\"\")","v":""}]
[]
[null,null,null,null,null,null,"Flex Admin"]
[]
[null,null,null,null,null,null,"Health",null,null,null,null,null,null,null,null,null,"Dependent",null,null,null,null,null,null,null,null,"Transit",null,null,null,null,null,null,null,"Parking",null,null,null,null,null,null,null,"HRA"]
[]
[null,null,null,null,null,null,"COBRA"]
[]
[null,null,null,null,null,null,"Dental",null,null,null,null,null,null,null,null,null,"Vision",null,null,null,null,null,null,null,null,"FSA",null,null,null,null,null,null,null,{"$f":"IF(OR(M143=\"Yes\",V143=\"Yes\",AD143=\"Yes\"),\"Can only administer if the product sold with EVHC\",\"\")","v":""}]
[]
[null,null,null,null,null,null,"Wellness",null,null,null,null,null,{"$f":"IF(C145=\"Yes\",\"Vendor\",\"\")","v":""}]
[]
[null,null,null,null,null,null,"Teladoc",null,null,null,null,null,{"$f":"IF(C147=\"Yes\",\"Product(s)\",\"\")","v":""},null,null,null,null,null,null,null,null,null,null,null,null,null,null,null,{"$f":"IF(C147=\"Yes\",\"Billing Arrangement\",\"\")","v":""},null,null,null,null,null,null,null,null,null,null,null,null,null,null,{"$f":"IF(C147=\"Yes\",\"45 Day Implementation\",\"\")","v":""}]
[]
[null,null,null,null,null,null,"CCM+",null,null,null,null,null,null,{"$f":"IF(C149=\"Yes\",\"60 Day Implementation\",\"\")","v":""}]
[]
[null,null,null,null,null,null,"Healthcare Bluebook",null,null,null,null,null,null,{"$f":"IF(C151=\"Yes\",\"Rewards\",\"\")","v":""},null,null,null,null,null,null,null,{"$f":"IF(R151=\"Yes\",\"How is it billed?\",\"\")","v":""}]
[]
[null,null,null,null,null,null,"EVHC Connect (Concierge Service)",null,null,null,null,null,null,null,null,null,{"$f":"IF(C153=\"Yes\",\"ADDITIONAL COST\",\"\")","v":""}]
[]
[null,null,null,null,null,null,"Nurseline",null,null,null,null,null,{"$f":"IF(C153=\"Yes\",\"Included with EVHC Connect\",IF(C155=\"Yes\",\"ADDITIONAL COST\",\"\"))","v":""}]
[]
[null,null,null,null,null,null,{"$f":"IF(OR(M47=\"Aetna\",M47=\"Cigna\",M47=\"UHC\"),\"Online Payment Manager (Standard)\",\"Online Payment Manager\")","v":"Online Payment Manager"}]
[]
[null,null,{"$f":"IF(C45=\"Yes\",\"Yes\",\"\")","v":""},null,null,null,"State Surcharge Processing (Standard)"]
[]
[null,null,null,null,null,null,"Set-up Fee",null,null,null,null,null,null,null,null,null,null,null,{"$f":"IF(C161=\"Yes\",\"< -- enter $ amount\",\"\")","v":""},null,null,null,null,null,{"$f":"IF(C161=\"Yes\",\"Sales Must Communicate Cost to Client\",\"\")","v":""}]
[]
[null,null,null,null,null,null,"Special Billing",null,null,null,null,null,{"$f":"IF(C163=\"Yes\",\"ADDITIONAL COST - Requires Approval from UW and Courtney\",\"\")","v":""}]
[]
[]
[]
[null,null,null,null,null,null,"Special Funding",null,null,null,null,null,{"$f":"IF(C167=\"Yes\",\"ADDITIONAL COST - Requires Approval from UW and Courtney\",\"\")","v":""}]
[]
[]
[]
[null,null,null,null,null,null,"EDI File Feed",null,null,null,null,null,{"$f":"IF(C171=\"Yes\",\"Requires 6-8 Weeks Post Effective Date to Implement - RTE Until Then\",\"\")","v":""}]
[]
[null,null,null,null,null,null,"HRIS Vendor"]
[]
[null,null,"RATES"]
[]
[null,null,null,"ADMIN",null,null,null,null,null,"ISL",null,null,null,null,null,null,null,null,null,null,null,null,null,null,null,null,null,"ASL",null,null,null,null,null,"AGGREGATE FACTORS"]
[]
[]
[null,null,null,null,null,null,null,null,null,null,"ee",null,null,null,"es",null,null,null,"ec",null,null,null,"fam",null,null,null,null,null,null,null,null,null,null,null,"ee",null,null,null,"es",null,null,null,"ec",null,null,null,"fam"]
[]
[]
[]
[]
[]
[]
[]
[]
[]
[]
[]
[]
[]
[]
[]
[]
[]
[]
[]
[null,null,"Internal Email",null,null,null,null,null,null,null,null,"External Email",null,null,null,null,null,null,null,null,null,null,null,{"$f":"MONTH(TODAY())&\".\"&DAY(TODAY())","v":"3.17"}]
[null,null,"bmohler@evhc.com",null,null,null,null,null,null,null,null,"cmerritt@luminarehealth.com",null,null,null,null,null,null,null,null,null,null,null,{"$f":"IF(OR(M123=\"Other\",M125=\"Other\",M127=\"Other\"),\"Katie - Please see pharmacy notes for non-standard requests.\",\"\")","v":""}]
[null,null,"cbaker@evhc.com",null,null,null,null,null,null,null,null,"dthomas@luminarehealth.com",null,null,null,null,null,null,null,null,null,null,null,{"$f":"IF(X201=\"\",\"\",\"<br> <br>\")","v":""}]
[null,null,"cbeatty@evhc.com",null,null,null,null,null,null,null,null,"bllanos@luminarehealth.com"]
[null,null,"jwolf@evhc.com",null,null,null,null,null,null,null,null,"aclayton@luminarehealth.com"]
[null,null,"ksells@evhc.com"]
[null,null,"nadams@evhc.om"]
[null,null,"pharmacysolutionsteam@evhc.com"]
[null,null,"rpainter@evhc.com"]
[null,null,"tnocar@evhc.com"]